[Event "*** Titled Tuesday Blitz"]
[Site "Chess.com"]
[Date "2021.03.16"]
[Round "3"]
[White "Trickov"]
[Black "PawnEatingZombie"]
[Result "1/2-1/2"]
[WhiteElo "2379"]
[BlackElo "2198"]
[TimeControl "180+1"]
[EndTime "10:28:15 PDT"]
[Termination "Game drawn - insufficient material"]

1. d4 {[%clk 0:02:57.5]} 1... d5 {[%clk 0:02:59.8]} 2. Nf3 {[%clk 0:02:53.9]}
2... e6 {[%clk 0:02:59.7]} 3. g3 {[%clk 0:02:53.1]} 3... b5 {[%clk 0:02:59]} 4.
Bg2 {[%clk 0:02:52.7]} 4... Nf6 {[%clk 0:02:58.1]} 5. O-O {[%clk 0:02:52.1]}
5... Bb7 {[%clk 0:02:57.3]} 6. a4 {[%clk 0:02:52.5]} 6... b4 {[%clk 0:02:57.4]}
7. c4 {[%clk 0:02:52.5]} 7... c5 {[%clk 0:02:57.4]} 8. cxd5 {[%clk 0:02:50.4]}
8... Bxd5 {[%clk 0:02:55.9]} 9. Bg5 {[%clk 0:02:41.7]} 9... Nbd7 {[%clk
0:02:45.3]} 10. Nbd2 {[%clk 0:02:35.9]} 10... Be7 {[%clk 0:02:43.3]} 11. dxc5
{[%clk 0:02:27]} 11... Nxc5 {[%clk 0:02:40.6]} 12. Rc1 {[%clk 0:02:13.7]} 12...
Rc8 {[%clk 0:02:30.5]} 13. Ne5 {[%clk 0:02:05.7]} 13... Bxg2 {[%clk 0:02:25.3]}
14. Kxg2 {[%clk 0:02:05.1]} 14... O-O {[%clk 0:02:18.4]} 15. Ndf3 {[%clk
0:01:15.9]} 15... h6 {[%clk 0:02:04.3]} 16. Be3 {[%clk 0:01:09.8]} 16... Qxd1
{[%clk 0:02:01.8]} 17. Rfxd1 {[%clk 0:01:08.9]} 17... Nxa4 {[%clk 0:02:01.9]}
18. Nc6 {[%clk 0:01:06.1]} 18... Bd8 {[%clk 0:01:18.8]} 19. Nxb4 {[%clk
0:00:41.5]} 19... Rxc1 {[%clk 0:01:15.9]} 20. Rxc1 {[%clk 0:00:41.4]} 20... Bb6
{[%clk 0:00:58.8]} 21. Bxb6 {[%clk 0:00:38.7]} 21... Nxb6 {[%clk 0:00:55.9]} 22.
Nc6 {[%clk 0:00:36.7]} 22... a6 {[%clk 0:00:51.3]} 23. Ra1 {[%clk 0:00:34.6]}
23... Ra8 {[%clk 0:00:48.1]} 24. Nfd4 {[%clk 0:00:28.3]} 24... Nfd5 {[%clk
0:00:47.8]} 25. e3 {[%clk 0:00:24.6]} 25... Nc4 {[%clk 0:00:45.4]} 26. b3 {[%clk
0:00:22.1]} 26... Nd6 {[%clk 0:00:41.5]} 27. Ra5 {[%clk 0:00:19.7]} 27... Kf8
{[%clk 0:00:39.8]} 28. e4 {[%clk 0:00:18]} 28... Nc3 {[%clk 0:00:36.7]} 29. e5
{[%clk 0:00:16.8]} 29... Ndb5 {[%clk 0:00:36.6]} 30. Nxb5 {[%clk 0:00:16.1]}
30... Nxb5 {[%clk 0:00:37]} 31. Nb4 {[%clk 0:00:16.3]} 31... Nd4 {[%clk
0:00:35]} 32. Rxa6 {[%clk 0:00:12.9]} 32... Rxa6 {[%clk 0:00:34]} 33. Nxa6
{[%clk 0:00:13]} 33... Nxb3 {[%clk 0:00:34.7]} 34. f4 {[%clk 0:00:13]} 34... f6
{[%clk 0:00:33.2]} 35. exf6 {[%clk 0:00:12.5]} 35... gxf6 {[%clk 0:00:33.5]} 36.
Nc7 {[%clk 0:00:12.8]} 36... Kf7 {[%clk 0:00:33]} 37. Nb5 {[%clk 0:00:13]} 37...
Nc5 {[%clk 0:00:32.4]} 38. Nd4 {[%clk 0:00:13]} 38... h5 {[%clk 0:00:31.9]} 39.
Kf3 {[%clk 0:00:13.1]} 39... e5 {[%clk 0:00:28.9]} 40. fxe5 {[%clk 0:00:12.7]}
40... fxe5 {[%clk 0:00:29.8]} 41. Ne2 {[%clk 0:00:12.4]} 41... Kf6 {[%clk
0:00:29]} 42. Ke3 {[%clk 0:00:12.7]} 42... Kf5 {[%clk 0:00:27.9]} 43. h3 {[%clk
0:00:12.7]} 43... Ne6 {[%clk 0:00:26.4]} 44. Ng1 {[%clk 0:00:12.5]} 44... Nd4
{[%clk 0:00:25.8]} 45. Nf3 {[%clk 0:00:11.3]} 45... Nxf3 {[%clk 0:00:25.8]} 46.
Kxf3 {[%clk 0:00:11.3]} 46... e4+ {[%clk 0:00:26.3]} 47. Ke3 {[%clk 0:00:11.5]}
47... Ke5 {[%clk 0:00:26.8]} 48. g4 {[%clk 0:00:11.8]} 48... hxg4 {[%clk
0:00:26.7]} 49. hxg4 {[%clk 0:00:12.1]} 49... Kd5 {[%clk 0:00:25.5]} 50. g5
{[%clk 0:00:12.2]} 50... Ke5 {[%clk 0:00:25.5]} 51. g6 {[%clk 0:00:12.4]} 51...
Kf6 {[%clk 0:00:25.6]} 52. Kxe4 {[%clk 0:00:12.7]} 52... Kxg6 {[%clk 0:00:25.8]}
1/2-1/2

[Event "*** Titled Tuesday Blitz"]
[Site "Chess.com"]
[Date "2021.03.16"]
[Round "3"]
[White "Mikhail_Golubev"]
[Black "827883"]
[Result "0-1"]
[WhiteElo "2536"]
[BlackElo "2281"]
[TimeControl "180+1"]
[EndTime "10:28:18 PDT"]
[Termination "827883 won by resignation"]

1. e4 {[%clk 0:03:00.9]} 1... e5 {[%clk 0:03:00.1]} 2. Nf3 {[%clk 0:03:00.5]}
2... Nc6 {[%clk 0:03:00.9]} 3. Bb5 {[%clk 0:03:00.2]} 3... a6 {[%clk 0:03:01.4]}
4. Ba4 {[%clk 0:02:59.7]} 4... Nf6 {[%clk 0:03:02]} 5. O-O {[%clk 0:02:59.3]}
5... Be7 {[%clk 0:03:02.8]} 6. d3 {[%clk 0:02:58.6]} 6... b5 {[%clk 0:03:02.9]}
7. Bb3 {[%clk 0:02:58.5]} 7... O-O {[%clk 0:03:03.6]} 8. a4 {[%clk 0:02:56.8]}
8... Bb7 {[%clk 0:03:03.3]} 9. axb5 {[%clk 0:02:41]} 9... axb5 {[%clk
0:03:04.2]} 10. Rxa8 {[%clk 0:02:40.4]} 10... Qxa8 {[%clk 0:03:01.7]} 11. Nc3
{[%clk 0:02:40.1]} 11... b4 {[%clk 0:02:58.9]} 12. Nd5 {[%clk 0:02:40]} 12...
Nxd5 {[%clk 0:02:24.7]} 13. Bxd5 {[%clk 0:02:39.5]} 13... d6 {[%clk 0:02:22.8]}
14. Bg5 {[%clk 0:02:32.1]} 14... Qd8 {[%clk 0:02:16.4]} 15. Bxe7 {[%clk
0:02:13.2]} 15... Qxe7 {[%clk 0:02:17.3]} 16. Qd2 {[%clk 0:02:13.5]} 16... b3
{[%clk 0:01:49.5]} 17. Bxb3 {[%clk 0:02:10.5]} 17... h6 {[%clk 0:01:43.8]} 18.
Bd5 {[%clk 0:02:08.3]} 18... Nd8 {[%clk 0:01:41.1]} 19. Bxb7 {[%clk 0:02:00.6]}
19... Nxb7 {[%clk 0:01:42]} 20. b4 {[%clk 0:01:53.6]} 20... Ra8 {[%clk
0:01:40.9]} 21. d4 {[%clk 0:01:46.4]} 21... exd4 {[%clk 0:01:36.3]} 22. Qxd4
{[%clk 0:01:46.5]} 22... Nd8 {[%clk 0:01:36.8]} 23. Re1 {[%clk 0:01:35.1]} 23...
Nc6 {[%clk 0:01:36.3]} 24. Qd5 {[%clk 0:01:33.5]} 24... Qe8 {[%clk 0:01:32]} 25.
c3 {[%clk 0:01:28.3]} 25... Ra3 {[%clk 0:01:23.7]} 26. Qc4 {[%clk 0:00:52.9]}
26... Ne5 {[%clk 0:01:02.1]} 27. Qxc7 {[%clk 0:00:46.6]} 27... Nxf3+ {[%clk
0:01:02.4]} 28. gxf3 {[%clk 0:00:46.6]} 28... Qe5 {[%clk 0:01:02.6]} 29. Qc8+
{[%clk 0:00:27.4]} 29... Kh7 {[%clk 0:01:02.5]} 30. Re3 {[%clk 0:00:26.5]} 30...
g6 {[%clk 0:00:45.4]} 31. Qd7 {[%clk 0:00:26]} 31... Kg7 {[%clk 0:00:43.7]} 32.
Kg2 {[%clk 0:00:21.5]} 32... h5 {[%clk 0:00:43.6]} 33. h4 {[%clk 0:00:20]} 33...
Qf4 {[%clk 0:00:39.3]} 34. Rd3 {[%clk 0:00:18.2]} 34... Qxh4 {[%clk 0:00:34.7]}
35. Qxd6 {[%clk 0:00:17.9]} 35... Ra1 {[%clk 0:00:31.7]} 36. Qe5+ {[%clk
0:00:17]} 36... Kh7 {[%clk 0:00:32.2]} 37. Qh2 {[%clk 0:00:13.8]} 37... Qg5+
{[%clk 0:00:32.5]} 38. Kh3 {[%clk 0:00:11.8]} 38... Rg1 {[%clk 0:00:22]} 39. b5
{[%clk 0:00:09.7]} 39... Rg4 {[%clk 0:00:21.8]} 40. Qg3 {[%clk 0:00:08.2]} 40...
Rxg3+ {[%clk 0:00:17.8]} 41. fxg3 {[%clk 0:00:08.6]} 41... Qxb5 {[%clk
0:00:18.4]} 42. Rd5 {[%clk 0:00:06.3]} 42... Qf1+ {[%clk 0:00:16.9]} 0-1

[Event "*** Titled Tuesday Blitz"]
[Site "Chess.com"]
[Date "2021.03.16"]
[Round "3"]
[White "MustafayevFarid2004"]
[Black "Matols"]
[Result "1-0"]
[WhiteElo "2465"]
[BlackElo "2271"]
[TimeControl "180+1"]
[EndTime "10:28:19 PDT"]
[Termination "MustafayevFarid2004 won on time"]

1. d4 {[%clk 0:03:00.9]} 1... Nf6 {[%clk 0:02:59.3]} 2. c4 {[%clk 0:03:01.1]}
2... e6 {[%clk 0:02:59.3]} 3. Nc3 {[%clk 0:03:00.9]} 3... Bb4 {[%clk 0:02:58.7]}
4. e3 {[%clk 0:03:01.1]} 4... O-O {[%clk 0:02:57.7]} 5. Ne2 {[%clk 0:03:00.8]}
5... Re8 {[%clk 0:02:57.6]} 6. a3 {[%clk 0:03:00.1]} 6... Bf8 {[%clk 0:02:57.2]}
7. Ng3 {[%clk 0:02:58.9]} 7... d5 {[%clk 0:02:40.4]} 8. Qc2 {[%clk 0:02:54.4]}
8... Nbd7 {[%clk 0:02:24.7]} 9. Bd3 {[%clk 0:02:28.6]} 9... dxc4 {[%clk
0:02:18.5]} 10. Bxc4 {[%clk 0:02:29.5]} 10... c5 {[%clk 0:02:16.3]} 11. dxc5
{[%clk 0:02:13.7]} 11... Nxc5 {[%clk 0:02:15.4]} 12. O-O {[%clk 0:02:10.1]}
12... b6 {[%clk 0:02:11.1]} 13. b4 {[%clk 0:02:08.4]} 13... Ncd7 {[%clk
0:02:09.5]} 14. Bb2 {[%clk 0:02:03.3]} 14... Bb7 {[%clk 0:02:08.6]} 15. Rfd1
{[%clk 0:02:01.3]} 15... Qe7 {[%clk 0:02:04]} 16. Qb3 {[%clk 0:01:52.6]} 16...
Rac8 {[%clk 0:02:02.1]} 17. Nb5 {[%clk 0:01:47.7]} 17... Nd5 {[%clk 0:01:33.1]}
18. e4 {[%clk 0:01:36.8]} 18... Qh4 {[%clk 0:01:02.3]} 19. exd5 {[%clk
0:01:28.5]} 19... Rxc4 {[%clk 0:00:57.3]} 20. dxe6 {[%clk 0:01:26.8]} 20... Rxe6
{[%clk 0:00:27.6]} 21. Rxd7 {[%clk 0:01:11.2]} 21... Bxg2 {[%clk 0:00:19]} 22.
Kxg2 {[%clk 0:00:59]} 22... Rh6 {[%clk 0:00:18.8]} 23. Qf3 {[%clk 0:00:55.5]}
23... Qh3+ {[%clk 0:00:16.4]} 24. Kg1 {[%clk 0:00:54.6]} 24... Qxd7 {[%clk
0:00:16.1]} 25. Nc3 {[%clk 0:00:50.2]} 25... Rch4 {[%clk 0:00:12.8]} 26. Rd1
{[%clk 0:00:33.7]} 26... Qh3 {[%clk 0:00:11.6]} 27. Qg2 {[%clk 0:00:31.1]} 27...
Qxg2+ {[%clk 0:00:11.5]} 28. Kxg2 {[%clk 0:00:32]} 28... Rxh2+ {[%clk
0:00:12.1]} 29. Kg1 {[%clk 0:00:32.7]} 29... R2h4 {[%clk 0:00:10.7]} 30. Nce4
{[%clk 0:00:32.2]} 30... Rg4 {[%clk 0:00:10.4]} 31. Rd8 {[%clk 0:00:30.3]} 31...
Re6 {[%clk 0:00:09.3]} 32. f3 {[%clk 0:00:22.4]} 32... Rgg6 {[%clk 0:00:07.8]}
33. Kf2 {[%clk 0:00:22.8]} 33... h5 {[%clk 0:00:05.2]} 34. Nxh5 {[%clk
0:00:22.2]} 34... Rh6 {[%clk 0:00:04.6]} 35. Nxg7 {[%clk 0:00:21.8]} 35... Rh2+
{[%clk 0:00:03.4]} 36. Kg3 {[%clk 0:00:22.2]} 36... Rxb2 {[%clk 0:00:03.2]} 37.
Nxe6 {[%clk 0:00:21.1]} 37... fxe6 {[%clk 0:00:03.2]} 38. Rd7 {[%clk 0:00:21.8]}
38... Rb3 {[%clk 0:00:02.3]} 39. Nf6+ {[%clk 0:00:22.1]} 1-0

[Event "*** Titled Tuesday Blitz"]
[Site "Chess.com"]
[Date "2021.03.16"]
[Round "3"]
[White "cukin84"]
[Black "Kurkusha"]
[Result "1-0"]
[WhiteElo "2115"]
[BlackElo "2353"]
[TimeControl "180+1"]
[EndTime "10:28:19 PDT"]
[Termination "cukin84 won on time"]

1. e4 {[%clk 0:03:00.9]} 1... e5 {[%clk 0:02:59.8]} 2. Nf3 {[%clk 0:03:00.2]}
2... Nc6 {[%clk 0:02:59.5]} 3. c3 {[%clk 0:02:59.9]} 3... Nf6 {[%clk 0:02:52.9]}
4. d4 {[%clk 0:02:59]} 4... Nxe4 {[%clk 0:02:31.6]} 5. d5 {[%clk 0:02:58.6]}
5... Ne7 {[%clk 0:02:29.1]} 6. Nxe5 {[%clk 0:02:58.1]} 6... d6 {[%clk
0:02:27.1]} 7. Qa4+ {[%clk 0:02:49.1]} 7... c6 {[%clk 0:02:09.3]} 8. dxc6 {[%clk
0:02:43.7]} 8... dxe5 {[%clk 0:01:20.6]} 9. cxb7+ {[%clk 0:02:33.1]} 9... Bd7
{[%clk 0:01:20.3]} 10. Qxe4 {[%clk 0:02:31.8]} 10... Rb8 {[%clk 0:01:19.8]} 11.
Bg5 {[%clk 0:02:16.4]} 11... f6 {[%clk 0:01:18.8]} 12. Be3 {[%clk 0:02:14.5]}
12... Bc6 {[%clk 0:01:18.2]} 13. Qg4 {[%clk 0:02:04]} 13... Rxb7 {[%clk
0:01:17.5]} 14. Bc4 {[%clk 0:02:00.9]} 14... f5 {[%clk 0:01:04.8]} 15. Qg5
{[%clk 0:01:51.9]} 15... h6 {[%clk 0:00:58.6]} 16. Qh4 {[%clk 0:01:44.1]} 16...
Bxg2 {[%clk 0:00:54.2]} 17. Rg1 {[%clk 0:01:34.7]} 17... Bd5 {[%clk 0:00:53.3]}
18. Nd2 {[%clk 0:01:28.1]} 18... Bxc4 {[%clk 0:00:41]} 19. Nxc4 {[%clk
0:01:27.8]} 19... f4 {[%clk 0:00:31.5]} 20. Bc5 {[%clk 0:01:25.8]} 20... Qd5
{[%clk 0:00:20.6]} 21. Nd6+ {[%clk 0:01:17.9]} 21... Kd8 {[%clk 0:00:18.2]} 22.
Rd1 {[%clk 0:01:13.8]} 22... Qxd1+ {[%clk 0:00:08.6]} 23. Kxd1 {[%clk 0:01:12]}
23... Rd7 {[%clk 0:00:09.5]} 24. Kc2 {[%clk 0:01:10.9]} 24... Kc7 {[%clk
0:00:09]} 25. Nb5+ {[%clk 0:01:08.7]} 25... Kc6 {[%clk 0:00:08.9]} 26. Bxe7
{[%clk 0:01:02.8]} 26... Bxe7 {[%clk 0:00:09.8]} 27. Qg4 {[%clk 0:01:02.1]}
27... Rhd8 {[%clk 0:00:09.8]} 28. a4 {[%clk 0:00:51.3]} 28... Rd2+ {[%clk
0:00:09.1]} 29. Kb3 {[%clk 0:00:49.7]} 29... a6 {[%clk 0:00:06.7]} 30. Qe6+
{[%clk 0:00:48.3]} 30... Bd6 {[%clk 0:00:06.9]} 31. Qc4+ {[%clk 0:00:41.8]}
31... Kb6 {[%clk 0:00:05.9]} 32. Nxd6 {[%clk 0:00:40.9]} 32... R8xd6 {[%clk
0:00:06.6]} 33. a5+ {[%clk 0:00:38.5]} 33... Kb7 {[%clk 0:00:05.6]} 34. Ka3
{[%clk 0:00:34.2]} 34... Rd7 {[%clk 0:00:05.5]} 35. Re1 {[%clk 0:00:31.5]} 35...
R2d5 {[%clk 0:00:05.3]} 36. Qb4+ {[%clk 0:00:27.8]} 36... Rb5 {[%clk 0:00:05.6]}
37. Qe4+ {[%clk 0:00:27.4]} 37... Ka7 {[%clk 0:00:04.8]} 38. b4 {[%clk
0:00:24.2]} 38... Rbd5 {[%clk 0:00:03.6]} 39. Qc4 {[%clk 0:00:23.3]} 39... g5
{[%clk 0:00:01.3]} 40. f3 {[%clk 0:00:22.9]} 40... h5 {[%clk 0:00:01.2]} 41. Qc6
{[%clk 0:00:21.7]} 41... g4 {[%clk 0:00:01.3]} 42. Re4 {[%clk 0:00:21.3]} 42...
Rd3 {[%clk 0:00:01.1]} 43. Rc4 {[%clk 0:00:21.1]} 1-0

[Event "*** Titled Tuesday Blitz"]
[Site "Chess.com"]
[Date "2021.03.16"]
[Round "3"]
[White "MatyChess1"]
[Black "DinaBelenkaya"]
[Result "1-0"]
[WhiteElo "2610"]
[BlackElo "2380"]
[TimeControl "180+1"]
[EndTime "10:28:20 PDT"]
[Termination "MatyChess1 won on time"]

1. e4 {[%clk 0:03:00.9]} 1... d5 {[%clk 0:02:59.8]} 2. exd5 {[%clk 0:03:00.8]}
2... Qxd5 {[%clk 0:03:00.1]} 3. Nc3 {[%clk 0:03:01.3]} 3... Qa5 {[%clk
0:03:00.2]} 4. d4 {[%clk 0:03:01.7]} 4... Nf6 {[%clk 0:02:59]} 5. Bd2 {[%clk
0:03:02.3]} 5... Qb6 {[%clk 0:02:46.4]} 6. Nf3 {[%clk 0:02:57.4]} 6... c6 {[%clk
0:02:45]} 7. Bc4 {[%clk 0:02:52.7]} 7... Bf5 {[%clk 0:02:37.3]} 8. Qe2 {[%clk
0:02:49.2]} 8... e6 {[%clk 0:02:36]} 9. O-O-O {[%clk 0:02:48.1]} 9... Nbd7
{[%clk 0:02:29]} 10. Nh4 {[%clk 0:02:29.1]} 10... Bg6 {[%clk 0:02:22]} 11. Nxg6
{[%clk 0:02:02.3]} 11... hxg6 {[%clk 0:02:22.9]} 12. Bxe6 {[%clk 0:02:02.4]}
12... fxe6 {[%clk 0:02:22.8]} 13. Qxe6+ {[%clk 0:02:03.3]} 13... Kd8 {[%clk
0:02:17.9]} 14. Rhe1 {[%clk 0:02:03.8]} 14... Bb4 {[%clk 0:01:47]} 15. Bg5
{[%clk 0:01:36.6]} 15... Qa5 {[%clk 0:01:36.1]} 16. d5 {[%clk 0:01:16.8]} 16...
Bxc3 {[%clk 0:00:51.8]} 17. bxc3 {[%clk 0:01:14.3]} 17... Qxc3 {[%clk
0:00:23.9]} 18. dxc6 {[%clk 0:01:00.8]} 18... Qa1+ {[%clk 0:00:15.5]} 19. Kd2
{[%clk 0:00:59.4]} 19... Qd4+ {[%clk 0:00:16.3]} 20. Ke2 {[%clk 0:00:54.1]}
20... Re8 {[%clk 0:00:11.3]} 21. Bxf6+ {[%clk 0:00:19.4]} 21... Kc7 {[%clk
0:00:03.8]} 22. Bxd4 {[%clk 0:00:06.5]} 22... Rxe6+ {[%clk 0:00:04.1]} 23. Kf1
{[%clk 0:00:06.6]} 23... Rxe1+ {[%clk 0:00:03.5]} 24. Rxe1 {[%clk 0:00:07.5]}
24... bxc6 {[%clk 0:00:03.8]} 25. Re7 {[%clk 0:00:07.6]} 25... Rg8 {[%clk
0:00:02.9]} 26. h4 {[%clk 0:00:07]} 26... a5 {[%clk 0:00:02.4]} 27. a4 {[%clk
0:00:06.7]} 27... Rh8 {[%clk 0:00:02.7]} 28. g3 {[%clk 0:00:06.5]} 28... Rb8
{[%clk 0:00:02.3]} 29. Rxg7 {[%clk 0:00:05.7]} 29... Rb1+ {[%clk 0:00:01.7]} 30.
Kg2 {[%clk 0:00:05.5]} 30... Rc1 {[%clk 0:00:02.6]} 31. Rxg6 {[%clk 0:00:04.3]}
31... Rxc2 {[%clk 0:00:03.1]} 32. Rg5 {[%clk 0:00:04.1]} 32... Rc4 {[%clk
0:00:02.7]} 33. Be3 {[%clk 0:00:04.1]} 33... Rxa4 {[%clk 0:00:03.3]} 34. h5
{[%clk 0:00:04.8]} 34... c5 {[%clk 0:00:03.5]} 35. h6 {[%clk 0:00:05.3]} 35...
Re4 {[%clk 0:00:02.3]} 36. Bxc5 {[%clk 0:00:03.6]} 36... Re8 {[%clk 0:00:02.1]}
37. Be3 {[%clk 0:00:03.7]} 37... a4 {[%clk 0:00:01.9]} 38. Ra5 {[%clk
0:00:04.2]} 1-0

[Event "*** Titled Tuesday Blitz"]
[Site "Chess.com"]
[Date "2021.03.16"]
[Round "3"]
[White "AwareIdea"]
[Black "Andrakhanova"]
[Result "1-0"]
[WhiteElo "2428"]
[BlackElo "2251"]
[TimeControl "180+1"]
[EndTime "10:28:22 PDT"]
[Termination "AwareIdea won on time"]

1. d4 {[%clk 0:03:00.9]} 1... d5 {[%clk 0:02:57.3]} 2. c4 {[%clk 0:02:59.7]}
2... e6 {[%clk 0:02:55.3]} 3. Nf3 {[%clk 0:02:59.6]} 3... c6 {[%clk 0:02:55.1]}
4. g3 {[%clk 0:02:59.7]} 4... dxc4 {[%clk 0:02:53.1]} 5. Bg2 {[%clk 0:02:59.9]}
5... b5 {[%clk 0:02:53.4]} 6. O-O {[%clk 0:03:00.8]} 6... Bb7 {[%clk 0:02:53.1]}
7. a4 {[%clk 0:02:59.4]} 7... a6 {[%clk 0:02:52]} 8. b3 {[%clk 0:02:57.8]} 8...
cxb3 {[%clk 0:02:50.9]} 9. Qxb3 {[%clk 0:02:58.7]} 9... Nd7 {[%clk 0:02:49.2]}
10. Bf4 {[%clk 0:02:53.9]} 10... Ngf6 {[%clk 0:02:46.9]} 11. Rc1 {[%clk
0:02:52.9]} 11... Nd5 {[%clk 0:02:44.7]} 12. Bd2 {[%clk 0:02:52.8]} 12... Be7
{[%clk 0:02:39.8]} 13. Nc3 {[%clk 0:02:50.1]} 13... O-O {[%clk 0:02:29.7]} 14.
Nxd5 {[%clk 0:02:45.9]} 14... exd5 {[%clk 0:02:30.6]} 15. a5 {[%clk 0:02:36.7]}
15... c5 {[%clk 0:02:22.1]} 16. dxc5 {[%clk 0:02:34.5]} 16... Nxc5 {[%clk
0:02:23]} 17. Qa2 {[%clk 0:02:28.6]} 17... Ne4 {[%clk 0:02:18.7]} 18. Be3 {[%clk
0:02:26.5]} 18... Rc8 {[%clk 0:02:08.2]} 19. Bb6 {[%clk 0:02:25.9]} 19... Qd6
{[%clk 0:02:01.1]} 20. Nd4 {[%clk 0:02:09.6]} 20... Qf6 {[%clk 0:01:54.9]} 21.
e3 {[%clk 0:02:01.8]} 21... h6 {[%clk 0:01:35.7]} 22. f3 {[%clk 0:01:45.7]}
22... Nd6 {[%clk 0:01:28.9]} 23. Bh3 {[%clk 0:01:08.1]} 23... Rxc1+ {[%clk
0:01:24.8]} 24. Rxc1 {[%clk 0:01:09]} 24... Nc4 {[%clk 0:01:24.2]} 25. Ba7
{[%clk 0:01:08.7]} 25... Ra8 {[%clk 0:01:19.9]} 26. Bb6 {[%clk 0:00:59.4]} 26...
Nxb6 {[%clk 0:01:15.3]} 27. axb6 {[%clk 0:01:00.3]} 27... Qxb6 {[%clk
0:01:15.9]} 28. Nf5 {[%clk 0:00:57.3]} 28... Bf6 {[%clk 0:01:08.2]} 29. Bf1
{[%clk 0:00:42.5]} 29... b4 {[%clk 0:01:06.6]} 30. Qb3 {[%clk 0:00:35.9]} 30...
a5 {[%clk 0:01:05.7]} 31. Qa4 {[%clk 0:00:28.6]} 31... Kh7 {[%clk 0:00:58.6]}
32. Bd3 {[%clk 0:00:27.9]} 32... g6 {[%clk 0:00:58.4]} 33. Qd7 {[%clk
0:00:24.7]} 33... gxf5 {[%clk 0:00:39.9]} 34. Qxf7+ {[%clk 0:00:12.7]} 34... Bg7
{[%clk 0:00:38.9]} 35. Rc7 {[%clk 0:00:10.2]} 35... Qxe3+ {[%clk 0:00:32.8]} 36.
Kg2 {[%clk 0:00:10.2]} 36... Rg8 {[%clk 0:00:29]} 37. Qxf5+ {[%clk 0:00:09.1]}
1-0

[Event "*** Titled Tuesday Blitz"]
[Site "Chess.com"]
[Date "2021.03.16"]
[Round "3"]
[White "elohunter1999"]
[Black "dretch"]
[Result "0-1"]
[WhiteElo "2623"]
[BlackElo "2851"]
[TimeControl "180+1"]
[EndTime "10:28:25 PDT"]
[Termination "dretch won by resignation"]

1. d4 {[%clk 0:03:00.9]} 1... d5 {[%clk 0:02:58.2]} 2. c4 {[%clk 0:03:00.6]}
2... c6 {[%clk 0:02:57.9]} 3. Nf3 {[%clk 0:03:00.2]} 3... Nf6 {[%clk 0:02:58.4]}
4. e3 {[%clk 0:03:00.3]} 4... Bf5 {[%clk 0:02:57.6]} 5. Nc3 {[%clk 0:02:59.7]}
5... e6 {[%clk 0:02:57.2]} 6. Nh4 {[%clk 0:02:59.7]} 6... Bg6 {[%clk 0:02:57.5]}
7. Be2 {[%clk 0:02:56.3]} 7... Nbd7 {[%clk 0:02:56.6]} 8. g3 {[%clk 0:02:52.4]}
8... Ne4 {[%clk 0:02:40.1]} 9. Nxg6 {[%clk 0:02:47.1]} 9... hxg6 {[%clk
0:02:36]} 10. Nxe4 {[%clk 0:02:42.4]} 10... dxe4 {[%clk 0:02:35.6]} 11. Qb3
{[%clk 0:02:39.7]} 11... Qc7 {[%clk 0:02:28.1]} 12. Bd2 {[%clk 0:02:38.8]} 12...
c5 {[%clk 0:02:22.8]} 13. d5 {[%clk 0:02:31.3]} 13... exd5 {[%clk 0:02:21.8]}
14. cxd5 {[%clk 0:02:31]} 14... Bd6 {[%clk 0:02:22.2]} 15. Qa4 {[%clk
0:02:15.8]} 15... f5 {[%clk 0:02:16.1]} 16. g4 {[%clk 0:02:14.7]} 16... Kf7
{[%clk 0:02:07.2]} 17. O-O-O {[%clk 0:02:06.2]} 17... a6 {[%clk 0:02:01.6]} 18.
gxf5 {[%clk 0:02:03.2]} 18... gxf5 {[%clk 0:02:01.5]} 19. f3 {[%clk 0:01:49.7]}
19... Rae8 {[%clk 0:01:38.1]} 20. Rhf1 {[%clk 0:01:45]} 20... Rxh2 {[%clk
0:01:34.8]} 21. Rde1 {[%clk 0:01:35]} 21... Bg3 {[%clk 0:01:21.5]} 22. d6 {[%clk
0:01:20.7]} 22... Qxd6 {[%clk 0:01:21.4]} 23. Bc4+ {[%clk 0:01:18.9]} 23... Kf8
{[%clk 0:01:20.7]} 24. Rd1 {[%clk 0:01:10.7]} 24... b5 {[%clk 0:01:19.9]} 25.
Qa3 {[%clk 0:00:51.8]} 25... bxc4 {[%clk 0:01:04.6]} 26. Be1 {[%clk 0:00:51.6]}
26... Qe6 {[%clk 0:00:05.4]} 27. Bxg3 {[%clk 0:00:47.4]} 27... Rh3 {[%clk
0:00:06.1]} 28. Bf4 {[%clk 0:00:23.1]} 28... exf3 {[%clk 0:00:05.2]} 29. Rd6
{[%clk 0:00:20.8]} 29... Qf7 {[%clk 0:00:05.4]} 30. Rfd1 {[%clk 0:00:17.5]}
30... f2 {[%clk 0:00:05.1]} 31. Rf1 {[%clk 0:00:14]} 31... Rf3 {[%clk
0:00:04.2]} 32. Qxa6 {[%clk 0:00:11.5]} 32... Kg8 {[%clk 0:00:03.6]} 33. Qb7
{[%clk 0:00:10.9]} 33... Ne5 {[%clk 0:00:02.8]} 34. Bxe5 {[%clk 0:00:10.7]}
34... Qxb7 {[%clk 0:00:02.6]} 35. Bf4 {[%clk 0:00:09.2]} 35... Qe7 {[%clk
0:00:03.2]} 36. Rd2 {[%clk 0:00:08.5]} 36... Rxf4 {[%clk 0:00:03.6]} 37. exf4
{[%clk 0:00:08.7]} 37... Qe1+ {[%clk 0:00:04.5]} 38. Rd1 {[%clk 0:00:09.1]}
38... Qe2 {[%clk 0:00:04.3]} 39. a3 {[%clk 0:00:07]} 39... Qxf1 {[%clk
0:00:04.6]} 40. Rxf1 {[%clk 0:00:06.7]} 40... Re1+ {[%clk 0:00:05.1]} 41. Kd2
{[%clk 0:00:07.4]} 41... Rxf1 {[%clk 0:00:06]} 42. Ke2 {[%clk 0:00:08.3]} 42...
Rb1 {[%clk 0:00:06.5]} 43. Kxf2 {[%clk 0:00:09.2]} 43... Rxb2+ {[%clk
0:00:07.4]} 44. Ke3 {[%clk 0:00:09.3]} 44... Rb3+ {[%clk 0:00:08.3]} 45. Kd2
{[%clk 0:00:09.6]} 45... Rxa3 {[%clk 0:00:09.2]} 46. Kc2 {[%clk 0:00:10.5]}
46... Rd3 {[%clk 0:00:09.7]} 47. Kb2 {[%clk 0:00:11.4]} 47... Kf7 {[%clk
0:00:10.4]} 48. Kc2 {[%clk 0:00:12.3]} 48... Ke6 {[%clk 0:00:11.3]} 49. Kb2
{[%clk 0:00:12.8]} 49... Kd5 {[%clk 0:00:12.2]} 50. Kc2 {[%clk 0:00:13.7]} 50...
Ke4 {[%clk 0:00:13.1]} 0-1